lending/lending_fUSD_20240410
["ID","MTS","AMOUNT","RATE_DAILY","PERIOD"]
[322079504,1712748639167,-262.51699494,0.00020989,2]
[322079505,1712748639178,-262.51699494,0.00020989,2]
[322079506,1712748639188,-262.51699494,0.00020989,2]
[322079507,1712748639199,-262.51699494,0.00020989,2]
[322079508,1712748639209,-262.51699494,0.00020989,2]
[322079509,1712748639219,-159.93745301,0.00020989,2]
[322079510,1712748639229,-173.041019,0.00020996,3]
[322079511,1712748639239,-336.082038,0.00020996,2]
[322079512,1712748639249,-2050.73928786,0.00020997,2]
[322079513,1712748639259,-155.0,0.00020997,2]
[322079514,1712748639269,-519.123057,0.00020997,2]
[322079515,1712748639279,-1038.246114,0.00020997,3]
[322079516,1712748639288,-912.07,0.00020997,2]
[322079517,1712748639297,-667.44100789,0.00020998,2]
[322079518,1712748639307,-284.89276116,0.00020998,2]
[322079519,1712748639317,-844.34598028,0.00020998,2]
[322079520,1712748639326,-792.50385449,0.00020998,2]
[322079521,1712748639337,-385.45136502,0.00020998,2]
[322079522,1712748639347,-196.85723822,0.00020998,2]
[322079523,1712748639357,-322.04066775,0.00020998,2]
[322079524,1712748639367,-983.33323738,0.00020998,2]
[322079525,1712748639377,-155.0,0.00020998,2]
[322079526,1712748639388,-302.4741937,0.00020998,2]
[322079527,1712748639398,-624.43285967,0.00020998,2]
[322079528,1712748639408,-270.79630459,0.00020998,2]
[322079529,1712748639418,-155.0,0.00020998,2]
[322079530,1712748639428,-785.52907082,0.00020998,2]
[322079531,1712748639438,-433.12071206,0.00020998,2]
[322079532,1712748639447,-547.24726264,0.00020998,2]
[322079533,1712748639457,-191.98693231,0.00020998,2]
[322079534,1712748639468,-410.62678064,0.00020998,2]
[322079535,1712748639478,-156.305592,0.00020998,2]
[322079536,1712748639488,-158.76426366,0.00020998,2]
[322079537,1712748639499,-217.91374955,0.00020998,2]
[322079538,1712748639513,-166.78819848,0.00020998,2]
[322079539,1712748639526,-208.07835669,0.00020998,2]
[322079540,1712748639536,-263.82350702,0.00020998,2]
[322079541,1712748639546,-1062.62676244,0.00020998,2]
[322079542,1712748639557,-210.28054416,0.00020998,2]
[322079543,1712748639568,-157.14504858,0.00020998,2]
[322079544,1712748639578,-237.1576047,0.00020998,2]
[322079545,1712748639589,-500.0,0.00020998,2]
[322079546,1712748639598,-500.0,0.00020998,2]
[322079547,1712748639608,-462.3322,0.00020998,2]
[322079548,1712748639617,-500.0,0.00020998,2]
[322079549,1712748639627,-1410.23,0.00020998,2]
[322079550,1712748639636,-209.99236181,0.00020998,2]
[322079551,1712748639646,-823.22,0.00020998,2]
[322079552,1712748639656,-500.0,0.00020998,2]
[322079553,1712748639668,-1550.7,0.00020998,2]
[322079554,1712748639678,-500.0,0.00020998,2]
[322079555,1712748639689,-500.0,0.00020998,2]
[322079556,1712748639699,-503.90969786,0.00020998,2]
[322079557,1712748639709,-357.2482,0.00020998,2]
[322079558,1712748639719,-500.0,0.00020998,2]
[322079559,1712748639730,-500.0,0.00020998,2]
[322079560,1712748639740,-1531.11,0.00020998,2]
[322079561,1712748639750,-233.3533178,0.00020999,2]
[322079562,1712748639761,-160.6631939,0.00020999,2]
[322079563,1712748639772,-640.23975986,0.00020999,2]
[322079564,1712748639782,-280307.09177868,0.00020999,2]
[322079565,1712748639793,-129962.49411331,0.00020999,2]
[322079566,1712748639803,-379.80356877,0.00020999,2]
[322079567,1712748639813,-500.0,0.00020999,2]
[322079568,1712748639825,-153.5500647,0.00020999,2]
[322079569,1712748639837,-500.0,0.00020999,2]
[322079570,1712748639847,-500.0,0.00020999,2]
[322079571,1712748639858,-588.30275181,0.00020999,2]
[322079572,1712748639869,-389.66291971,0.00021,2]
[322079573,1712748639880,-233.79775183,0.00021,2]
[322079574,1712748639890,-162.26947106,0.00021,2]
[322079575,1712748639900,-8682053.71911724,0.00021,2]
[322079576,1712748640011,-554630.06415728,0.00021,2]
[322079577,1712748640022,-714.96210186,0.00021,2]
[322079578,1712748640032,-476.68,0.00021,2]
[322079579,1712748640042,-388.59,0.00021,2]
[322079580,1712748640053,-155.0,0.00021,2]
[322079581,1712748640064,-14931905.28382396,0.00021,2]
[322079582,1712748640074,-577.52330511,0.00021,2]
[322079583,1712748640083,-2000.0,0.00021,2]
[322079584,1712748640093,-200.0,0.00021,2]
[322079585,1712748640103,-250.0,0.00021,3]
[322079586,1712748640112,-155.86516788,0.00021,2]
[322079587,1712748640121,-908.43,0.00021014,2]
[322079588,1712748640131,-12755.0,0.00021014,2]
[322079589,1712748640140,-1058.63,0.00021173,2]
[322079590,1712748640150,-1963.88,0.00021173,2]
[322079591,1712748640160,-2000.0,0.0002121,2]
[322079592,1712748640169,-200.0,0.0002121,2]
[322079593,1712748640179,-2147.0,0.0002123,3]
[322079594,1712748640192,-20000.0,0.0002123,3]
[322079595,1712748640203,-912.07,0.00021271,2]
[322079596,1712748640213,-500.0,0.00021272,2]
[322079597,1712748640224,-500.0,0.00021272,2]
[322079598,1712748640234,-1410.23,0.00021272,2]
[322079599,1712748640245,-823.22,0.00021272,2]
[322079600,1712748640255,-500.0,0.00021272,2]
[322079601,1712748640265,-1550.7,0.00021272,2]
[322079602,1712748640275,-495.09684889,0.00021272,2]
[322079603,1712748640286,-165.84,0.00021272,2]
[322079604,1712748640296,-1531.11,0.00021272,2]
[322079605,1712748640308,-1951.3,0.0002137,2]
[322079606,1712748640319,-2000.0,0.00021422,2]
[322079607,1712748640330,-200.0,0.00021422,2]
[322079608,1712748640342,-1058.63,0.00021447,2]
[322079609,1712748640352,-1963.88,0.00021447,2]
[322079610,1712748640362,-912.07,0.00021545,2]
[322079611,1712748640374,-500.0,0.00021546,2]
[322079612,1712748640383,-1410.23,0.00021546,2]
[322079613,1712748640393,-823.22,0.00021546,2]
[322079614,1712748640403,-500.0,0.00021546,2]
[322079615,1712748640413,-1550.7,0.00021546,2]
[322079616,1712748640423,-1531.11,0.00021546,2]
[322079617,1712748640432,-806.47057403,0.00021636,2]
[322079618,1712748640442,-1058.63,0.00021721,2]
[322079619,1712748640452,-1963.88,0.00021721,2]
[322079620,1712748640462,-156.11,0.00021737,2]
[322079621,1712748640472,-556.0,0.0002178,2]
[322079622,1712748640482,-557.0,0.0002178,2]
[322079623,1712748640492,-912.07,0.00021819,2]
[322079624,1712748640501,-516.26790245,0.0002182,2]
[322079625,1712748640512,-1410.23,0.0002182,2]
[322079626,1712748640523,-823.22,0.0002182,2]
[322079627,1712748640534,-500.0,0.0002182,2]
[322079628,1712748640544,-1550.7,0.0002182,2]
[322079629,1712748640554,-1531.11,0.0002182,2]
[322079630,1712748640564,-790.9808523,0.000219,2]
[322079631,1712748640575,-8306.57,0.00021918,2]
[322079632,1712748640585,-250.0,0.00021918,2]
[322079633,1712748640596,-250.0,0.00021918,2]
[322079634,1712748640607,-150.0,0.00021918,2]
[322079635,1712748640617,-1058.63,0.00021995,2]
[322079636,1712748640627,-1963.88,0.00021995,2]
[322079637,1712748640637,-500.72724174,0.00021998,2]
[322079638,1712748640647,-952.17194491,0.00022,2]
[322079639,1712748640658,-282.16237035,0.00022,2]
[322079640,1712748640667,-104128.64898994,0.00022,2]
[322079641,1712748640699,-6461.55522669,0.00022,2]
[322079642,1712748640716,-771.41854868,0.00022,2]
[322079643,1712748640728,-907.87201028,0.00022,2]
[322079644,1712748640740,-7437.74186184,0.00022,2]
[322079645,1712748640756,-886.61327392,0.00022,2]
[322079646,1712748640801,-1468.06024433,0.00022,2]
[322079647,1712748640813,-91212.66849426,0.00022,2]
[322079648,1712748640823,-672.99687868,0.00022,2]
[322079649,1712748640833,-562.65039884,0.00022,2]
[322079650,1712748640842,-7720.23870151,0.00022,2]
[322079651,1712748640853,-238.65302526,0.00022,2]
[322079652,1712748640863,-1054.12784888,0.00022,2]
[322079653,1712748640872,-912.07,0.00022093,2]
[322079654,1712748640882,-1410.23,0.00022094,2]
[322079655,1712748640891,-823.22,0.00022094,2]
[322079656,1712748640901,-500.0,0.00022094,2]
[322079657,1712748640910,-1550.7,0.00022094,2]
[322079658,1712748640920,-1531.11,0.00022094,2]
[322079659,1712748640929,-223.84931248,0.0002211,2]
[322079660,1712748640939,-1000.0,0.00022137,2]
[322079661,1712748640949,-1058.63,0.00022269,2]
[322079662,1712748640958,-1963.88,0.00022269,2]
[322079663,1712748640969,-204.75357554,0.000223,2]
[322079664,1712748640978,-180.0,0.00022301,2]
[322079665,1712748640988,-912.07,0.00022367,2]
[322079666,1712748640999,-1410.23,0.00022368,2]
[322079667,1712748641009,-823.22,0.00022368,2]
[322079668,1712748641018,-500.0,0.00022368,2]
[322079669,1712748641028,-1550.7,0.00022368,2]
[322079670,1712748641038,-1531.11,0.00022368,2]
[322079671,1712748641048,-25675.34082882,0.000225,2]
[322079672,1712748641058,-1058.63,0.00022543,2]
[322079673,1712748641067,-1963.88,0.00022543,2]
[322079674,1712748641076,-1039.27,0.0002262,2]
[322079675,1712748641086,-912.07,0.00022641,2]
[322079676,1712748641095,-1410.23,0.00022642,2]
[322079677,1712748641105,-823.22,0.00022642,2]
[322079678,1712748641115,-500.0,0.00022642,2]
[322079679,1712748641125,-1550.7,0.00022642,2]
[322079680,1712748641135,-1531.11,0.00022642,2]
[322079681,1712748641144,-1058.63,0.00022817,2]
[322079682,1712748641154,-1963.88,0.00022817,2]
[322079683,1712748641164,-189.124,0.00022889,2]
[322079684,1712748641174,-912.07,0.00022915,2]
[322079685,1712748641396,-1410.23,0.00022916,2]
[322079686,1712748641409,-823.22,0.00022916,2]
[322079687,1712748641418,-500.0,0.00022916,2]
[322079688,1712748641427,-1550.7,0.00022916,2]
[322079689,1712748641436,-1531.11,0.00022916,2]
[322079690,1712748641445,-238.99138586,0.00023,2]
[322079691,1712748641454,-155.19215466,0.00023,2]
[322079692,1712748641463,-275.26446898,0.00023,2]
[322079693,1712748641473,-307.07035254,0.00023,2]
[322079694,1712748641482,-26347.52816434,0.00023,2]
[322079695,1712748641491,-300.0,0.00023,3]
[322079696,1712748641500,-13173.8898689,0.0002301,2]
[322079697,1712748641510,-517.0,0.00023013,2]
[322079698,1712748641523,-1058.63,0.00023091,2]
[322079699,1712748641532,-1963.88,0.00023091,2]
[322079700,1712748641541,-912.07,0.00023189,2]
[322079701,1712748641551,-1410.23,0.0002319,2]
[322079702,1712748641561,-823.22,0.0002319,2]
[322079703,1712748641570,-500.0,0.0002319,2]
[322079704,1712748641579,-1550.7,0.0002319,2]
[322079705,1712748641588,-1531.11,0.0002319,2]
[322079706,1712748641598,-1000.0,0.00023288,2]
[322079707,1712748641607,-1000.0,0.00023288,2]
[322079708,1712748641617,-1000.0,0.00023288,2]
[322079709,1712748641626,-1000.0,0.00023288,2]
[322079710,1712748641636,-1000.0,0.00023288,2]
[322079711,1712748641645,-1000.0,0.00023288,2]
[322079712,1712748641655,-1000.0,0.00023288,2]
[322079713,1712748641663,-1000.0,0.00023288,2]
[322079714,1712748641672,-1000.0,0.00023288,2]
[322079715,1712748641682,-1000.0,0.00023288,2]
[322079716,1712748641691,-1000.0,0.00023288,2]
[322079717,1712748641701,-1000.0,0.00023288,2]
[322079718,1712748641710,-1000.0,0.00023288,2]
[322079719,1712748641719,-173.0,0.00023288,2]
[322079720,1712748641728,-1058.63,0.00023365,2]
[322079721,1712748641738,-1963.88,0.00023365,2]
[322079722,1712748641747,-912.07,0.00023463,2]
[322079723,1712748641756,-1410.23,0.00023464,2]
[322079724,1712748641766,-823.22,0.00023464,2]
[322079725,1712748641775,-500.0,0.00023464,2]
[322079726,1712748641785,-1550.7,0.00023464,2]
[322079727,1712748641795,-1531.11,0.00023464,2]
[322079728,1712748641804,-5000.0,0.000235,2]
[322079729,1712748641813,-167.49,0.00023591,2]
[322079730,1712748641822,-1058.63,0.00023639,2]
[322079731,1712748641831,-1963.88,0.00023639,2]
[322079732,1712748641842,-19460.06407151,0.000237,2]
[322079733,1712748641851,-912.07,0.00023737,2]
[322079734,1712748641860,-1410.23,0.00023738,2]
[322079735,1712748641869,-823.22,0.00023738,2]
[322079736,1712748641878,-1550.7,0.00023738,2]
[322079737,1712748641888,-1531.11,0.00023738,2]
[322079738,1712748641896,-1058.63,0.00023913,2]
[322079739,1712748641906,-1963.88,0.00023913,2]
[322079740,1712748641915,-224.62727988,0.00024,2]
[322079741,1712748641925,-454.58628101,0.00024,2]
[322079742,1712748641934,-942.65350389,0.00024,2]
[322079743,1712748641943,-912.07,0.00024011,2]
[322079744,1712748641952,-1410.23,0.00024012,2]
[322079745,1712748641962,-823.22,0.00024012,2]
[322079746,1712748641971,-1550.7,0.00024012,2]
[322079747,1712748641981,-1531.11,0.00024012,2]
[322079748,1712748641990,-1500.0,0.0002408,2]
[322079749,1712748642000,-1031.16494158,0.000241,2]
[322079750,1712748642009,-533.0,0.000241,2]
[322079751,1712748642018,-1418.35559,0.0002411,2]
[322079752,1712748642028,-1418.35559,0.0002414,2]
[322079753,1712748642037,-1058.63,0.00024187,2]
[322079754,1712748642046,-1963.88,0.00024187,2]
[322079755,1712748642056,-392.90980667,0.0002421,2]
[322079756,1712748642065,-1418.35559,0.0002422,2]
[322079757,1712748642074,-517.0,0.00024246,2]
[322079758,1712748642084,-1203.88097616,0.0002425,2]
[322079759,1712748642093,-912.07,0.00024285,2]
[322079760,1712748642102,-1410.23,0.00024286,2]
[322079761,1712748642112,-823.22,0.00024286,2]
[322079762,1712748642121,-1550.7,0.00024286,2]
[322079763,1712748642130,-1531.11,0.00024286,2]
[322079764,1712748642140,-1418.3556,0.000243,2]
[322079765,1712748642149,-1418.35559,0.0002438,2]
[322079766,1712748642158,-152.49924889,0.0002442,2]
[322079767,1712748642168,-1418.35559,0.0002446,2]
[322079768,1712748642178,-1058.63,0.00024461,2]
[322079769,1712748642187,-1963.88,0.00024461,2]
[322079770,1712748642197,-806.95748481,0.000245,2]
[322079771,1712748642207,-912.07,0.00024559,2]
[322079772,1712748642215,-1410.23,0.0002456,2]
[322079773,1712748642226,-823.22,0.0002456,2]
[322079774,1712748642235,-1550.7,0.0002456,2]
[322079775,1712748642245,-1531.11,0.0002456,2]
[322079776,1712748642254,-1000.0,0.00024596,2]
[322079777,1712748642264,-149089.15696195,0.0002469,5]
[322079778,1712748642273,-1058.63,0.00024735,2]
[322079779,1712748642283,-1963.88,0.00024735,2]
[322079780,1712748642292,-2223.73711434,0.000248,2]
[322079781,1712748642301,-823.22,0.00024833,2]
[322079782,1712748642310,-1550.7,0.00024833,2]
[322079783,1712748642319,-912.07,0.00024833,2]
[322079784,1712748642330,-1531.11,0.00024833,2]
[322079785,1712748642339,-1410.23,0.00024834,2]
[322079786,1712748642349,-1361.64470333,0.00025,2]
[322079787,1712748642358,-2603.52703539,0.00025,2]
[322079788,1712748642367,-155.0,0.00025,2]
[322079789,1712748642377,-369.0,0.00025,2]
[322079790,1712748642386,-350.0,0.00025,3]
[322079791,1712748642395,-1058.63,0.00025009,2]
[322079792,1712748642404,-1963.88,0.00025009,2]
[322079793,1712748642413,-823.22,0.00025107,2]
[322079794,1712748642423,-1550.7,0.00025107,2]
[322079795,1712748642432,-912.07,0.00025107,2]
[322079796,1712748642442,-1531.11,0.00025107,2]
[322079797,1712748642451,-1410.23,0.00025108,2]
[322079798,1712748642460,-1058.63,0.00025283,2]
[322079799,1712748642471,-1963.88,0.00025283,2]
[322079800,1712748642481,-1039.27,0.0002536,2]
[322079801,1712748642490,-823.22,0.00025381,2]
[322079802,1712748642499,-1550.7,0.00025381,2]
[322079803,1712748642509,-912.07,0.00025381,2]
[322079804,1712748642522,-1531.11,0.00025381,2]
[322079805,1712748642531,-1410.23,0.00025382,2]
[322079806,1712748642542,-517.0,0.00025479,2]
[322079807,1712748642553,-1058.63,0.00025557,2]
[322079808,1712748642563,-1963.88,0.00025557,2]
[322079809,1712748642572,-156.11,0.00025648,2]
[322079810,1712748642582,-823.22,0.00025655,2]
[322079811,1712748642593,-1550.7,0.00025655,2]
[322079812,1712748642602,-912.07,0.00025655,2]
[322079813,1712748642612,-892.87,0.00025655,2]
[322079814,1712748642622,-1531.11,0.00025655,2]
[322079815,1712748642631,-1410.23,0.00025656,2]
[322079816,1712748642641,-1058.63,0.00025831,2]
[322079817,1712748642650,-1963.88,0.00025831,2]
[322079818,1712748642658,-823.22,0.00025929,2]
[322079819,1712748642667,-1550.7,0.00025929,2]
[322079820,1712748642677,-912.07,0.00025929,2]
[322079821,1712748642688,-892.87,0.00025929,2]
[322079822,1712748642697,-1531.11,0.00025929,2]
[322079823,1712748642707,-1410.23,0.0002593,2]
[322079824,1712748642716,-156.92392735,0.00025983,2]
[322079825,1712748642726,-393.98000001,0.00026,2]
[322079826,1712748642736,-1058.63,0.00026105,2]
[322079827,1712748642745,-1963.88,0.00026105,2]
[322079828,1712748642755,-823.22,0.00026203,2]
[322079829,1712748642764,-1550.7,0.00026203,2]
[322079830,1712748642774,-912.07,0.00026203,2]
[322079831,1712748642784,-892.87,0.00026203,2]
[322079832,1712748642794,-1531.11,0.00026203,2]
[322079833,1712748642804,-1410.23,0.00026204,2]
[322079834,1712748642814,-1058.63,0.00026379,2]
[322079835,1712748642823,-1963.88,0.00026379,2]
[322079836,1712748642833,-823.22,0.00026477,2]
[322079837,1712748642842,-1550.7,0.00026477,2]
[322079838,1712748642851,-892.87,0.00026477,2]
[322079839,1712748642861,-912.07,0.00026477,2]
[322079840,1712748642870,-1531.11,0.00026477,2]
[322079841,1712748642879,-1410.23,0.00026478,2]
[322079842,1712748642888,-1058.63,0.00026653,2]
[322079843,1712748642897,-1963.88,0.00026653,2]
[322079844,1712748642906,-517.0,0.00026712,2]
[322079845,1712748642915,-161.18289218,0.00026725,2]
[322079846,1712748642924,-823.22,0.00026751,2]
[322079847,1712748642934,-1550.7,0.00026751,2]
[322079848,1712748642943,-892.87,0.00026751,2]
[322079849,1712748642951,-912.07,0.00026751,2]
[322079850,1712748642961,-1531.11,0.00026751,2]
[322079851,1712748642972,-1410.23,0.00026752,2]
[322079852,1712748642982,-1058.63,0.00026927,2]
[322079853,1712748642993,-1963.88,0.00026927,2]
[322079854,1712748643002,-1000.0,0.00027,2]
[322079855,1712748643012,-400.0,0.00027,3]
[322079856,1712748643021,-823.22,0.00027025,2]
[322079857,1712748643031,-1550.7,0.00027025,2]
[322079858,1712748643040,-912.07,0.00027025,2]
[322079859,1712748643049,-1531.11,0.00027025,2]
[322079860,1712748643058,-1410.23,0.00027026,2]
[322079861,1712748643067,-1000.0,0.00027056,2]
[322079862,1712748643077,-3425.39,0.00027123,2]
[322079863,1712748643086,-156.08416384,0.00027198,2]
[322079864,1712748643096,-1058.67,0.00027201,2]
[322079865,1712748643105,-1963.97374225,0.00027201,2]
[322079866,1712748643114,-1410.36351247,0.00027299,2]
[322079867,1712748643123,-823.24249488,0.00027299,2]
[322079868,1712748643133,-1550.77306666,0.00027299,2]
[322079869,1712748643142,-912.14088495,0.00027299,2]
[322079870,1712748643151,-1531.12362787,0.00027299,2]
[322079871,1712748643160,-362.30639052,0.00027397,2]
[322079872,1712748643169,-150.09,0.00027397,2]
[322079873,1712748643178,-380.24,0.00027397,2]
[322079874,1712748643188,-342.34435101,0.00027401,2]
[322079875,1712748643197,-156.01719987,0.00027428,2]
[322079876,1712748643207,-3120.40087043,0.00027428,2]
[322079877,1712748643216,-2464.748155,0.000278,2]
[322079878,1712748643227,-517.0,0.00027945,2]
[322079879,1712748643236,-153.88972214,0.00028222,2]
[322079880,1712748643244,-161.18289218,0.00028378,2]
[322079881,1712748643254,-150.20449643,0.00028382,2]
[322079882,1712748643263,-2100.0,0.0002853,2]
[322079883,1712748643272,-150.0,0.0002853,2]
[322079884,1712748643282,-6924.06841522,0.00028591,2]
[322079885,1712748643291,-806.0,0.00028967,2]
[322079886,1712748643301,-281.014,0.00028967,2]
[322079887,1712748643310,-1945.0,0.00028967,2]
[322079888,1712748643320,-435.0,0.00028967,2]
[322079889,1712748643329,-611.475,0.00028967,2]
[322079890,1712748643338,-3039.0,0.00028967,2]
[322079891,1712748643349,-150.744,0.00028967,2]
[322079892,1712748643359,-436.6,0.00028967,2]
[322079893,1712748643368,-1148.59,0.00028967,2]
[322079894,1712748643378,-1478.947,0.00028967,2]
[322079895,1712748643387,-150.638,0.00028967,2]
[322079896,1712748643396,-1645.002,0.00028967,2]
[322079897,1712748643406,-2450.754,0.00028967,2]
[322079898,1712748643416,-354.0,0.00028967,2]
[322079899,1712748643425,-5711.0,0.00028967,2]
[322079900,1712748643435,-966.0,0.00028967,2]
[322079901,1712748643445,-4796.0,0.00028967,2]
[322079902,1712748643455,-37570.0,0.00028967,2]
[322079903,1712748643466,-2463.0,0.00028967,2]
[322079904,1712748643479,-460.0,0.00028967,2]
[322079905,1712748643489,-2288.0,0.00028967,2]
[322079906,1712748643499,-1328.767,0.00028967,2]
[322079907,1712748643511,-1389.0,0.00028967,2]
[322079908,1712748643523,-6744.92204359,0.00029,2]
[322079909,1712748643532,-62426.89260184,0.00029,2]
[322079910,1712748643541,-450.0,0.00029,3]
[322079911,1712748643551,-150.84,0.00029,2]
[322079912,1712748643561,-150.84,0.00029,2]
[322079913,1712748643571,-150.84,0.00029,2]
[322079914,1712748643581,-150.84,0.00029,2]
[322079915,1712748643590,-150.84,0.00029,2]
[322079916,1712748643601,-150.84,0.00029,2]
[322079917,1712748643611,-150.84,0.00029,2]
[322079918,1712748643621,-150.84,0.00029,2]
[322079919,1712748643630,-150.84,0.00029,2]
[322079920,1712748643639,-150.84,0.00029,2]
[322079921,1712748643649,-150.84,0.00029,2]
[322079922,1712748643658,-150.84,0.00029,2]
[322079923,1712748643669,-150.84,0.00029,2]
[322079924,1712748643679,-150.84,0.00029,2]
[322079925,1712748643689,-150.84,0.00029,2]
[322079926,1712748643699,-150.84,0.00029,2]
[322079927,1712748643708,-150.84,0.00029,2]
[322079928,1712748643721,-150.84,0.00029,2]
[322079929,1712748643731,-150.84,0.00029,2]
[322079930,1712748643740,-150.84,0.00029,2]
[322079931,1712748643750,-150.84,0.00029,2]
[322079932,1712748643759,-150.84,0.00029,2]
[322079933,1712748643769,-150.84,0.00029,2]
[322079934,1712748643779,-150.84,0.00029,2]
[322079935,1712748643789,-150.84,0.00029,2]
[322079936,1712748643799,-150.84,0.00029,2]
[322079937,1712748643809,-150.84,0.00029,2]
[322079938,1712748643818,-150.84,0.00029,2]
[322079939,1712748643828,-150.84,0.00029,2]
[322079940,1712748643838,-150.84,0.00029,2]
[322079941,1712748643848,-150.84,0.00029,2]
[322079942,1712748643857,-150.84,0.00029,2]
[322079944,1712748643867,-150.84,0.00029,2]
[322079946,1712748643876,-150.84,0.00029,2]
[322079948,1712748643885,-150.84,0.00029,2]
[322079950,1712748643895,-150.84,0.00029,2]
[322079952,1712748643904,-150.84,0.00029,2]
[322079954,1712748643913,-150.84,0.00029,2]
[322079956,1712748643923,-150.84,0.00029,2]
[322079958,1712748643932,-150.84,0.00029,2]
[322079960,1712748643941,-150.84,0.00029,2]
[322079962,1712748643950,-150.84,0.00029,2]
[322079964,1712748643959,-150.84,0.00029,2]
[322079966,1712748643969,-150.84,0.00029,2]
[322079968,1712748643979,-150.84,0.00029,2]
[322079970,1712748643988,-150.84,0.00029,2]
[322079972,1712748643997,-150.84,0.00029,2]
[322079974,1712748644006,-150.84,0.00029,2]
[322079976,1712748644016,-150.84,0.00029,2]
[322079978,1712748644026,-150.84,0.00029,2]
[322079980,1712748644035,-150.84,0.00029,2]
[322079982,1712748644044,-150.84,0.00029,2]
[322079984,1712748644054,-150.84,0.00029,2]
[322079987,1712748644063,-150.84,0.00029,2]
[322079989,1712748644072,-150.84,0.00029,2]
[322079991,1712748644081,-150.84,0.00029,2]
[322079993,1712748644090,-150.84,0.00029,2]
[322079995,1712748644099,-150.84,0.00029,2]
[322079997,1712748644108,-150.84,0.00029,2]
[322079999,1712748644117,-150.84,0.00029,2]
[322080001,1712748644126,-150.84,0.00029,2]
[322080003,1712748644135,-150.84,0.00029,2]
[322080005,1712748644144,-150.84,0.00029,2]
[322080007,1712748644153,-156.01719987,0.00029029,2]
[322080009,1712748644162,-517.0,0.00029178,2]
[322080011,1712748644171,-441.77418907,0.000295,3]
[322080013,1712748644180,-1000.0,0.00029516,2]
[322080015,1712748644189,-156.11,0.00029558,2]
[322080017,1712748644198,-156.01719987,0.00029569,2]
[322080019,1712748644207,-154.38466505,0.000299,2]
[322080021,1712748644216,-6939.13491161,0.0003,2]
[322080023,1712748644227,-405.59680121,0.0003,4]
[322080025,1712748644236,-455.35697942,0.0003,2]
[322080027,1712748644244,-19311.62545863,0.0003,4]
[322080028,1712748644254,-23722.27564431,0.0003,4]
[322080030,1712748644262,-448.62769266,0.0003,7]
[322080032,1712748644271,-219.25888395,0.0003,2]
[322080034,1712748644280,-188874.91949926,0.0003,2]
[322080037,1712748644299,-150.84,0.00029,2]
[322080040,1712748644309,-324.59334858,0.0003,2]
[322080042,1712748644320,-196257.06554677,0.0003,2]
[322080044,1712748644331,-34332.90801796,0.0003,2]
[322080047,1712748644346,-150.84,0.00029,2]
[322080049,1712748644355,-66382.76623932,0.0003,2]
[322080056,1712748644564,-555.61130365,0.00028967,2]
[322080057,1712748644575,-496.38869635,0.00028967,2]
[322080058,1712748644585,-150.84,0.00029,2]
[322080059,1712748644595,-150.84,0.00029,2]
[322080060,1712748644605,-150.84,0.00029,2]
[322080061,1712748644614,-150.84,0.00029,2]
[322080062,1712748644623,-150.84,0.00029,2]
[322080063,1712748644635,-150.84,0.00029,2]
[322080064,1712748644644,-150.84,0.00029,2]